fUST/lending_fUST_20251004
["ID","MTS","AMOUNT","RATE_DAILY","PERIOD"]
[388983118,1759554640175,-1315.81,0.00021998,3]
[388983119,1759554640185,-500.0,0.00021998,3]
[388983121,1759554640196,-500.0,0.00021998,3]
[388983124,1759554640207,-500.0,0.00021998,3]
[388983126,1759554640222,-500.0,0.00021998,3]
[388983128,1759554640233,-500.0,0.00021998,3]
[388983130,1759554640245,-500.0,0.00021998,3]
[388983132,1759554640254,-500.0,0.00021998,3]
[388983134,1759554640266,-1822.68,0.00021998,3]
[388983136,1759554640276,-500.0,0.00021998,3]
[388983138,1759554640287,-500.0,0.00021998,3]
[388983140,1759554640297,-2772.43,0.00021998,3]
[388983142,1759554640308,-500.0,0.00021998,3]
[388983144,1759554640318,-1074.07,0.00021998,3]
[388983146,1759554640327,-500.0,0.00021998,3]
[388983148,1759554640337,-1495.58,0.00021998,3]
[388983150,1759554640347,-2271.19,0.00021998,3]
[388983152,1759554640357,-500.0,0.00021998,3]
[388983154,1759554640366,-500.0,0.00021998,3]
[388983156,1759554640377,-860.15,0.00021998,3]
[388983158,1759554640390,-1426.1,0.00021998,3]
[388983160,1759554640400,-500.0,0.00021998,3]
[388983162,1759554640412,-500.0,0.00021998,3]
[388983164,1759554640421,-500.0,0.00021998,3]
[388983166,1759554640430,-500.0,0.00021998,3]
[388983168,1759554640440,-465.7064828,0.00021998,3]
[388983170,1759554640449,-1691.53,0.00021998,3]
[388983173,1759554640458,-481.7641048,0.00021998,3]
[388983174,1759554640468,-500.0,0.00021998,3]
[388983177,1759554640477,-1364.87,0.00021998,3]
[388983179,1759554640487,-500.0,0.00021998,3]
[388983181,1759554640497,-500.0,0.00021998,3]
[388983183,1759554640506,-1465.71,0.00021998,3]
[388983185,1759554640515,-500.0,0.00021998,3]
[388983187,1759554640524,-500.0,0.00021998,3]
[388983189,1759554640533,-1629.9,0.00021998,3]
[388983191,1759554640542,-500.0,0.00021998,3]
[388983193,1759554640552,-500.0,0.00021998,2]
[388983195,1759554640564,-500.0,0.00021998,3]
[388983197,1759554640573,-500.0,0.00021998,3]
[388983199,1759554640582,-500.0,0.00021998,3]
[388983201,1759554640592,-8918.32,0.00021998,3]
[388983203,1759554640603,-485.57645482,0.00021998,3]
[388983205,1759554640613,-500.0,0.00021998,3]
[388983207,1759554640622,-500.0,0.00021998,3]
[388983209,1759554640633,-500.0,0.00021998,3]
[388983211,1759554640644,-500.0,0.00021998,3]
[388983213,1759554640653,-1057.7,0.00021998,3]
[388983215,1759554640662,-1288.23,0.00021998,3]
[388983217,1759554640672,-4987.75,0.00021998,3]
[388983219,1759554640681,-500.0,0.00021998,3]
[388983221,1759554640690,-500.0,0.00021998,3]
[388983223,1759554640700,-500.0,0.00021998,3]
[388983225,1759554640709,-500.0,0.00021998,3]
[388983227,1759554640719,-1672.48,0.00021998,3]
[388983229,1759554640728,-500.0,0.00021998,3]
[388983231,1759554640738,-500.0,0.00021998,3]
[388983233,1759554640747,-747.31,0.00021998,3]
[388983235,1759554640756,-500.0,0.00021998,3]
[388983237,1759554640766,-500.0,0.00021998,3]
[388983240,1759554640776,-500.0,0.00021998,3]
[388983242,1759554640787,-1194.48,0.00021998,3]
[388983250,1759554640856,-555.1,0.00021998,3]
[388983252,1759554640867,-5028.54,0.00021998,3]
[388983254,1759554640876,-500.0,0.00021998,3]
[388983256,1759554640886,-500.0,0.00021998,3]
[388983258,1759554640895,-500.0,0.00021999,3]
[388983260,1759554640904,-500.0,0.00021999,3]
[388983262,1759554640914,-500.0,0.00021999,3]
[388983264,1759554640923,-501.87418188,0.00021999,3]
[388983266,1759554640932,-500.0,0.00021999,3]
[388983268,1759554640941,-500.0,0.00021999,3]
[388983270,1759554640950,-521.33085702,0.00021999,3]
[388983272,1759554640959,-500.0,0.00021999,3]
[388983274,1759554640968,-826.16,0.00021999,3]
[388983277,1759554640978,-500.0,0.00021999,3]
[388983279,1759554640988,-175.43988461,0.00021999,3]
[388983281,1759554640997,-1000.0,0.00021999,3]
[388983283,1759554641006,-500.0,0.00021999,3]
[388983285,1759554641015,-500.0,0.00021999,3]
[388983287,1759554641024,-500.0,0.00021999,3]
[388983289,1759554641036,-1608.35,0.00021999,3]
[388983291,1759554641046,-500.0,0.00021999,3]
[388983292,1759554641056,-474.12883938,0.00021999,3]
[388983294,1759554641067,-500.0,0.00021999,3]
[388983297,1759554641077,-2073.94,0.00021999,3]
[388983299,1759554641086,-500.0,0.00021999,3]
[388983301,1759554641096,-562.93,0.00021999,3]
[388983302,1759554641105,-500.0,0.00021999,3]
[388983305,1759554641123,-1561.13,0.00021999,3]
[388983307,1759554641137,-500.0,0.00021999,3]
[388983309,1759554641146,-500.0,0.00021999,3]
[388983312,1759554641156,-500.0,0.00021999,3]
[388983313,1759554641165,-1174.58,0.00021999,3]
[388983316,1759554641175,-500.0,0.00021999,3]
[388983318,1759554641185,-500.0,0.00021999,3]
[388983320,1759554641194,-500.0,0.00021999,3]
[388983322,1759554641203,-500.0,0.00021999,3]
[388983324,1759554641213,-500.0,0.00021999,3]
[388983326,1759554641222,-1463.46,0.00021999,3]
[388983328,1759554641232,-462.78830198,0.00021999,3]
[388983330,1759554641242,-745.71,0.00021999,3]
[388983332,1759554641251,-619.79,0.00021999,3]
[388983334,1759554641260,-500.0,0.00021999,3]
[388983336,1759554641269,-500.0,0.00021999,3]
[388983338,1759554641278,-500.0,0.00021999,3]
[388983340,1759554641287,-1384.11,0.00021999,3]
[388983342,1759554641296,-500.0,0.00021999,3]
[388983344,1759554641305,-500.0,0.00021999,3]
[388983346,1759554641314,-500.0,0.00021999,3]
[388983348,1759554641324,-1476.3,0.00021999,3]
[388983350,1759554641334,-500.0,0.00021999,3]
[388983352,1759554641343,-500.0,0.00021999,3]
[388983354,1759554641352,-463.65531702,0.00021999,3]
[388983356,1759554641361,-4132.05,0.00021999,3]
[388983358,1759554641370,-265.32370453,0.00021999,3]
[388983360,1759554641379,-2460.27,0.00021999,3]
[388983362,1759554641389,-500.0,0.00021999,3]
[388983364,1759554641399,-500.0,0.00021999,3]
[388983366,1759554641409,-500.0,0.00021999,3]
[388983368,1759554641418,-500.0,0.00021999,3]
[388983370,1759554641427,-1969.67,0.00021999,3]
[388983373,1759554641436,-472.34014194,0.00021999,3]
[388983375,1759554641446,-500.0,0.00021999,3]
[388983377,1759554641455,-500.0,0.00021999,3]
[388983379,1759554641465,-500.0,0.00021999,3]
[388983381,1759554641474,-500.0,0.00021999,3]
[388983383,1759554641484,-500.0,0.00021999,3]
[388983385,1759554641494,-500.0,0.00021999,3]
[388983387,1759554641503,-500.0,0.00021999,3]
[388983389,1759554641512,-500.0,0.00021999,3]
[388983391,1759554641522,-500.0,0.00021999,3]
[388983393,1759554641531,-447.22815829,0.00021999,3]
[388983395,1759554641540,-500.0,0.00021999,3]
[388983397,1759554641550,-500.0,0.00021999,3]
[388983399,1759554641562,-500.0,0.00021999,3]
[388983401,1759554641571,-575.93,0.00021999,3]
[388983403,1759554641581,-500.0,0.00021999,3]
[388983405,1759554641590,-500.0,0.00021999,3]
[388983407,1759554641599,-450.20832156,0.00021999,3]
[388983409,1759554641608,-275.335864,0.00021999,3]
[388983411,1759554641618,-500.0,0.00021999,3]
[388983413,1759554641627,-2217.92,0.00021999,3]
[388983415,1759554641639,-500.0,0.00021999,3]
[388983417,1759554641649,-500.0,0.00021999,3]
[388983419,1759554641658,-500.0,0.00021999,3]
[388983422,1759554641667,-500.0,0.00021999,3]
[388983424,1759554641676,-500.0,0.00021999,3]
[388983426,1759554641686,-703.21,0.00021999,3]
[388983428,1759554641696,-500.0,0.00021999,3]
[388983430,1759554641705,-513.16,0.00021999,3]
[388983432,1759554641714,-611.68,0.00021999,3]
[388983434,1759554641723,-500.0,0.00021999,3]
[388983436,1759554641732,-500.0,0.00021999,3]
[388983438,1759554641742,-500.0,0.00021999,3]
[388983440,1759554641751,-500.0,0.00021999,3]
[388983442,1759554641760,-729.77,0.00021999,3]
[388983444,1759554641770,-500.0,0.00021999,3]
[388983446,1759554641779,-618.85,0.00021999,3]
[388983447,1759554641788,-616.01,0.00021999,3]
[388983448,1759554641798,-500.0,0.00021999,3]
[388983449,1759554641807,-3658.51,0.00021999,3]
[388983450,1759554641817,-631.13,0.00021999,3]
[388983451,1759554641827,-500.0,0.00021999,3]
[388983452,1759554641837,-500.0,0.00021999,3]
[388983453,1759554641847,-1523.85,0.00021999,3]
[388983454,1759554641856,-500.0,0.00021999,3]
[388983455,1759554641866,-500.0,0.00021999,3]
[388983456,1759554641875,-500.0,0.00021999,3]
[388983457,1759554641884,-500.0,0.00021999,3]
[388983458,1759554641894,-500.0,0.00021999,3]
[388983459,1759554641903,-384.72011386,0.00021999,3]
[388983460,1759554641912,-500.0,0.00021999,3]
[388983461,1759554641922,-500.0,0.00021999,3]
[388983462,1759554641931,-587.3,0.00021999,3]
[388983463,1759554641940,-3902.21,0.00021999,3]
[388983464,1759554641952,-750.02,0.00021999,3]
[388983465,1759554641962,-500.0,0.00021999,3]
[388983466,1759554641971,-1112.64,0.00021999,3]
[388983467,1759554641980,-641.59,0.00021999,3]
[388983468,1759554641990,-866.89,0.00021999,3]
[388983469,1759554641999,-500.0,0.00021999,3]
[388983470,1759554642010,-500.0,0.00021999,3]
[388983471,1759554642019,-500.0,0.00021999,3]
[388983472,1759554642028,-500.0,0.00021999,3]
[388983473,1759554642038,-500.0,0.00021999,3]
[388983474,1759554642047,-1000.0,0.00021999,3]
[388983475,1759554642056,-604.91,0.00021999,3]
[388983476,1759554642066,-500.0,0.00021999,3]
[388983477,1759554642076,-500.0,0.00021999,3]
[388983478,1759554642085,-500.0,0.00021999,3]
[388983479,1759554642095,-500.0,0.00021999,3]
[388983480,1759554642104,-500.0,0.00021999,3]
[388983481,1759554642115,-500.0,0.00021999,3]
[388983482,1759554642125,-500.0,0.00021999,3]
[388983483,1759554642135,-500.0,0.00021999,3]
[388983484,1759554642145,-500.0,0.00021999,3]
[388983485,1759554642155,-444.78827819,0.00021999,3]
[388983486,1759554642164,-500.0,0.00021999,3]
[388983487,1759554642174,-500.0,0.00021999,3]
[388983488,1759554642183,-500.0,0.00021999,3]
[388983489,1759554642197,-500.0,0.00021999,3]
[388983490,1759554642207,-500.0,0.00021999,3]
[388983491,1759554642216,-500.0,0.00021999,3]
[388983492,1759554642225,-828.87,0.00021999,3]
[388983493,1759554642235,-500.0,0.00021999,3]
[388983494,1759554642244,-500.0,0.00021999,3]
[388983495,1759554642253,-1174.67,0.00021999,3]
[388983496,1759554642265,-500.0,0.00021999,3]
[388983497,1759554642274,-500.0,0.00021999,3]
[388983498,1759554642284,-500.0,0.00021999,3]
[388983499,1759554642294,-500.0,0.00021999,3]
[388983500,1759554642303,-1365.73,0.00021999,3]
[388983501,1759554642313,-553.5,0.00021999,3]
[388983502,1759554642322,-613.1,0.00021999,3]
[388983504,1759554642332,-500.0,0.00021999,3]
[388983505,1759554642342,-500.0,0.00021999,3]
[388983506,1759554642351,-500.0,0.00021999,3]
[388983507,1759554642360,-500.0,0.00021999,3]
[388983508,1759554642370,-500.0,0.00021999,3]
[388983509,1759554642379,-674.84,0.00021999,3]
[388983510,1759554642390,-500.0,0.00021999,3]
[388983511,1759554642400,-500.0,0.00021999,3]
[388983513,1759554642409,-500.0,0.00021999,3]
[388983515,1759554642418,-1156.18,0.00021999,3]
[388983516,1759554642427,-500.0,0.00021999,3]
[388983517,1759554642437,-546.54,0.00021999,3]
[388983518,1759554642446,-500.0,0.00021999,3]
[388983519,1759554642455,-651.6,0.00021999,3]
[388983520,1759554642465,-500.0,0.00021999,3]
[388983521,1759554642474,-1092.66,0.00021999,3]
[388983522,1759554642483,-611.46586544,0.00021999,3]
[388983523,1759554642493,-500.0,0.00021999,3]
[388983524,1759554642502,-500.0,0.00021999,3]
[388983525,1759554642512,-865.16,0.00021999,3]
[388983526,1759554642522,-500.0,0.00021999,3]
[388983527,1759554642531,-480.09657904,0.00021999,3]
[388983528,1759554642541,-500.0,0.00021999,3]
[388983529,1759554642550,-500.0,0.00021999,3]
[388983530,1759554642563,-500.0,0.00021999,3]
[388983531,1759554642573,-500.0,0.00021999,3]
[388983532,1759554642582,-500.0,0.00021999,3]
[388983533,1759554642591,-1211.95,0.00021999,3]
[388983534,1759554642602,-500.0,0.00021999,3]
[388983535,1759554642611,-500.0,0.00021999,3]
[388983536,1759554642620,-500.0,0.00021999,3]
[388983537,1759554642629,-1152.73,0.00021999,3]
[388983538,1759554642642,-500.0,0.00021999,3]
[388983539,1759554642652,-500.0,0.00021999,3]
[388983540,1759554642661,-927.07,0.00021999,3]
[388983541,1759554642671,-513.76,0.00021999,3]
[388983542,1759554642681,-500.0,0.00021999,3]
[388983543,1759554642690,-500.0,0.00021999,3]
[388983544,1759554642700,-383.70124898,0.00021999,3]
[388983545,1759554642709,-500.0,0.00021999,3]
[388983546,1759554642719,-599.17,0.00021999,3]
[388983547,1759554642728,-500.0,0.00021999,3]
[388983548,1759554642737,-584.62,0.00021999,3]
[388983549,1759554642747,-500.0,0.00021999,3]
[388983550,1759554642756,-1164.48,0.00021999,3]
[388983551,1759554642766,-500.0,0.00021999,3]
[388983552,1759554642775,-500.0,0.00021999,3]
[388983553,1759554642784,-500.0,0.00021999,3]
[388983554,1759554642794,-500.0,0.00021999,3]
[388983555,1759554642804,-500.0,0.00021999,3]
[388983556,1759554642813,-500.0,0.00021999,3]
[388983557,1759554642822,-500.0,0.00021999,3]
[388983558,1759554642831,-500.0,0.00021999,3]
[388983559,1759554642841,-500.0,0.00021999,3]
[388983560,1759554642851,-500.0,0.00021999,3]
[388983562,1759554642860,-500.0,0.00021999,3]
[388983564,1759554642869,-818.76,0.00021999,3]
[388983566,1759554642879,-500.0,0.00021999,3]
[388983568,1759554642888,-707.34,0.00021999,3]
[388983570,1759554642898,-618.38,0.00021999,3]
[388983573,1759554642907,-500.0,0.00021999,3]
[388983575,1759554642917,-500.0,0.00021999,3]
[388983577,1759554642926,-2801.36,0.00021999,3]
[388983579,1759554642936,-500.0,0.00021999,3]
[388983580,1759554642946,-305.44631033,0.0002211,2]
[388983583,1759554642956,-500.0,0.00022269,3]
[388983585,1759554642966,-307.90295672,0.00022269,3]
[388983586,1759554642974,-500.0,0.00022269,3]
[388983587,1759554642983,-1080.88,0.00022269,3]
[388983588,1759554642992,-500.0,0.00022269,3]
[388983589,1759554643001,-615.64,0.00022269,3]
[388983590,1759554643009,-500.0,0.00022269,3]
[388983591,1759554643018,-500.0,0.00022269,3]
[388983592,1759554643027,-500.0,0.00022269,2]
[388983593,1759554643036,-500.0,0.0002227,3]
[388983594,1759554643045,-500.0,0.0002227,3]
[388983595,1759554643054,-932.0,0.0002227,3]
[388983596,1759554643063,-418.09081363,0.0002227,3]
[388983597,1759554643071,-500.0,0.0002227,3]
[388983598,1759554643080,-426.79960627,0.0002227,3]
[388983599,1759554643088,-656.74,0.0002227,3]
[388983600,1759554643097,-500.0,0.0002227,3]
[388983601,1759554643106,-1654.46,0.0002227,3]
[388983602,1759554643114,-1024.73,0.0002227,3]
[388983603,1759554643124,-1677.6,0.0002227,3]
[388983604,1759554643133,-500.0,0.0002227,3]
[388983605,1759554643142,-500.0,0.0002227,3]
[388983607,1759554643151,-7367.48,0.0002227,3]
[388983609,1759554643160,-500.0,0.0002227,3]
[388983611,1759554643168,-2024.78,0.0002227,3]
[388983613,1759554643177,-761.32,0.0002227,3]
[388983615,1759554643186,-500.0,0.00022271,3]
[388983617,1759554643196,-500.0,0.00022271,3]
[388983619,1759554643205,-551.68451343,0.00022271,3]
[388983621,1759554643214,-500.0,0.00022271,3]
[388983623,1759554643222,-500.0,0.00022271,3]
[388983625,1759554643231,-500.0,0.00022271,3]
[388983627,1759554643240,-500.0,0.00022271,3]
[388983629,1759554643249,-435.7116071,0.00022271,3]
[388983630,1759554643258,-500.0,0.00022271,3]
[388983631,1759554643267,-1275.24,0.00022271,3]
[388983632,1759554643277,-500.0,0.00022271,3]
[388983633,1759554643287,-500.0,0.00022271,3]
[388983634,1759554643296,-748.7,0.00022271,3]
[388983635,1759554643305,-500.0,0.00022271,3]
[388983636,1759554643314,-2352.01,0.00022271,3]
[388983637,1759554643323,-1227.05,0.00022271,3]
[388983638,1759554643332,-500.0,0.00022271,3]
[388983639,1759554643341,-2999.67,0.00022271,3]
[388983640,1759554643350,-1498.83,0.00022271,3]
[388983641,1759554643359,-1872.32,0.00022271,3]
[388983642,1759554643368,-696.76,0.00022271,3]
[388983643,1759554643377,-1836.87,0.00022271,3]
[388983644,1759554643386,-500.0,0.00022271,3]
[388983645,1759554643397,-560.52,0.00022271,3]
[388983646,1759554643406,-4354.59,0.00022271,3]
[388983647,1759554643415,-500.0,0.00022271,3]
[388983648,1759554643424,-826.39,0.00022271,3]
[388983649,1759554643433,-1319.38,0.00022271,3]
[388983650,1759554643444,-791.26,0.00022271,3]
[388983651,1759554643454,-500.0,0.00022271,3]
[388983652,1759554643465,-2315.56,0.00022271,3]
[388983653,1759554643475,-2225.06,0.00022271,3]
[388983654,1759554643484,-547.06,0.00022271,3]
[388983655,1759554643494,-3357.31,0.00022271,3]
[388983656,1759554643503,-500.0,0.00022271,3]
[388983657,1759554643512,-500.0,0.00022272,3]
[388983658,1759554643522,-505.11718668,0.00022272,3]
[388983659,1759554643531,-635.38,0.00022272,3]
[388983660,1759554643540,-500.0,0.00022272,3]
[388983661,1759554643549,-500.0,0.00022272,3]
[388983662,1759554643566,-488.50029924,0.00022272,3]
[388983663,1759554643575,-500.0,0.00022272,3]
[388983664,1759554643586,-500.0,0.00022272,3]
[388983665,1759554643595,-500.0,0.00022272,3]
[388983666,1759554643605,-500.0,0.00022272,3]
[388983667,1759554643615,-500.0,0.00022272,3]
[388983668,1759554643624,-1064.97,0.00022272,3]
[388983669,1759554643635,-500.0,0.00022272,3]
[388983670,1759554643644,-362.32166968,0.00022272,3]
[388983671,1759554643653,-626.31,0.00022272,3]
[388983672,1759554643662,-452.77920076,0.00022272,3]
[388983673,1759554643672,-423.7328509,0.00022272,3]
[388983674,1759554643681,-480.0,0.00022272,3]
[388983675,1759554643690,-500.0,0.00022272,3]
[388983676,1759554643700,-2272.62,0.00022272,3]
[388983677,1759554643709,-500.0,0.00022272,3]
[388983678,1759554643719,-500.0,0.00022272,3]
[388983679,1759554643728,-554.92,0.00022272,3]
[388983680,1759554643738,-570.41288824,0.00022272,3]
[388983681,1759554643747,-500.0,0.00022272,3]
[388983682,1759554643757,-1389.13,0.00022272,3]
[388983683,1759554643766,-679.14,0.00022272,3]
[388983684,1759554643776,-500.0,0.00022272,3]
[388983685,1759554643786,-500.0,0.00022272,3]
[388983686,1759554643796,-963.82,0.00022272,3]
[388983687,1759554643806,-593.27,0.00022272,3]
[388983688,1759554643815,-1069.2,0.00022272,3]
[388983689,1759554643825,-500.0,0.00022272,3]
[388983690,1759554643834,-505.84,0.00022272,3]
[388983691,1759554643844,-500.0,0.00022272,3]
[388983692,1759554643853,-738.2,0.00022272,3]
[388983693,1759554643863,-500.0,0.00022272,3]
[388983694,1759554643875,-640.62,0.00022272,3]
[388983695,1759554643885,-500.0,0.00022272,3]
[388983696,1759554643895,-500.0,0.00022272,3]
[388983697,1759554643905,-491.8156685,0.00022272,3]
[388983698,1759554643916,-500.0,0.00022272,3]
[388983699,1759554643927,-480.55281792,0.00022272,3]
[388983700,1759554643939,-1154.66,0.00022272,3]
[388983701,1759554643948,-500.0,0.00022272,3]
[388983702,1759554643958,-500.0,0.00022272,3]
[388983703,1759554643969,-510.62,0.00022272,3]
[388983704,1759554643979,-500.0,0.00022272,3]
[388983705,1759554643989,-500.0,0.00022272,3]
[388983706,1759554643999,-500.0,0.00022272,3]
[388983707,1759554644010,-1154.72,0.00022272,3]
[388983708,1759554644020,-1942.35,0.00022272,3]
[388983709,1759554644032,-500.0,0.00022272,3]
[388983710,1759554644042,-500.0,0.00022272,3]
[388983711,1759554644052,-532.02,0.00022272,3]
[388983712,1759554644062,-500.0,0.00022272,3]
[388983713,1759554644072,-1891.59,0.00022272,3]
[388983714,1759554644082,-475.9178438,0.00022272,3]
[388983715,1759554644092,-500.0,0.00022272,3]
[388983716,1759554644102,-537.89,0.00022272,3]
[388983717,1759554644112,-500.0,0.00022272,3]
[388983718,1759554644121,-2546.12,0.00022272,3]
[388983719,1759554644131,-500.0,0.00022272,3]
[388983720,1759554644142,-500.0,0.00022272,3]
[388983721,1759554644152,-996.88,0.00022272,3]
[388983722,1759554644162,-500.0,0.00022272,3]
[388983723,1759554644172,-500.0,0.00022272,3]
[388983724,1759554644182,-899.7,0.00022272,3]
[388983725,1759554644192,-500.0,0.00022272,3]
[388983726,1759554644202,-511.65,0.00022272,3]
[388983727,1759554644213,-500.0,0.00022272,3]
[388983728,1759554644224,-500.0,0.00022272,3]
[388983729,1759554644234,-500.0,0.00022272,3]
[388983730,1759554644246,-500.0,0.00022272,3]
[388983731,1759554644255,-500.0,0.00022272,3]
[388983732,1759554644265,-480.36958762,0.00022272,2]
[388983733,1759554644275,-1403.9,0.00022272,3]
[388983734,1759554644284,-879.84,0.00022272,3]
[388983735,1759554644294,-500.0,0.00022272,3]
[388983736,1759554644304,-678.74,0.00022272,3]
[388983737,1759554644314,-500.0,0.00022272,3]
[388983738,1759554644324,-500.0,0.00022272,3]
[388983739,1759554644333,-701.15,0.00022272,3]
[388983740,1759554644346,-500.0,0.00022272,3]
[388983741,1759554644355,-500.0,0.00022272,3]
[388983742,1759554644365,-729.8,0.00022272,3]
[388983743,1759554644375,-1326.87,0.00022272,3]
[388983744,1759554644386,-500.0,0.00022272,3]
[388983745,1759554644396,-500.0,0.00022272,3]
[388983746,1759554644406,-500.0,0.00022272,3]
[388983747,1759554644416,-500.0,0.00022272,3]
[388983748,1759554644425,-500.0,0.00022272,3]
[388983749,1759554644435,-500.0,0.00022272,3]
[388983750,1759554644444,-500.0,0.00022272,3]
[388983751,1759554644454,-500.0,0.00022272,3]
[388983752,1759554644464,-500.0,0.00022272,3]
[388983753,1759554644473,-1205.45,0.00022272,3]
[388983754,1759554644482,-500.0,0.00022272,3]
[388983755,1759554644493,-500.0,0.00022272,3]
[388983756,1759554644502,-1056.82,0.00022272,3]
[388983757,1759554644513,-1830.75,0.00022272,3]
[388983758,1759554644523,-500.0,0.00022272,3]
[388983759,1759554644533,-500.0,0.00022272,3]
[388983760,1759554644543,-793.03,0.00022272,3]
[388983761,1759554644553,-570.58955426,0.00022272,3]
[388983762,1759554644567,-1792.92,0.00022272,3]
[388983763,1759554644577,-500.0,0.00022272,3]
[388983764,1759554644586,-500.0,0.00022272,3]
[388983765,1759554644596,-500.0,0.00022272,3]
[388983766,1759554644607,-635.34,0.00022272,3]
[388983767,1759554644617,-813.87,0.00022272,3]
[388983768,1759554644626,-500.0,0.00022272,3]
[388983769,1759554644638,-1315.81,0.00022272,3]
[388983770,1759554644649,-500.0,0.00022272,3]
[388983771,1759554644658,-500.0,0.00022272,3]
[388983772,1759554644668,-500.0,0.00022272,3]
[388983773,1759554644678,-500.0,0.00022272,3]
[388983774,1759554644688,-500.0,0.00022272,3]
[388983775,1759554644698,-500.0,0.00022272,3]
[388983776,1759554644708,-428.21618788,0.00022272,3]
[388983777,1759554644717,-1822.68,0.00022272,3]
[388983778,1759554644727,-500.0,0.00022272,3]
[388983779,1759554644737,-500.0,0.00022272,3]
[388983780,1759554644746,-2772.43,0.00022272,3]
[388983781,1759554644756,-500.0,0.00022272,3]
[388983782,1759554644767,-1074.07,0.00022272,3]
[388983783,1759554644776,-500.0,0.00022272,3]
[388983784,1759554644787,-1495.58,0.00022272,3]
[388983785,1759554644797,-2271.19,0.00022272,3]
[388983786,1759554644806,-500.0,0.00022272,3]
[388983787,1759554644816,-500.0,0.00022272,3]
[388983788,1759554644825,-860.15,0.00022272,3]
[388983789,1759554644835,-1426.1,0.00022272,3]
[388983790,1759554644845,-500.0,0.00022272,3]
[388983791,1759554644856,-500.0,0.00022272,3]
[388983792,1759554644866,-500.0,0.00022272,3]
[388983793,1759554644877,-500.0,0.00022272,3]
[388983794,1759554644887,-1691.53,0.00022272,3]
[388983795,1759554644897,-464.4966581,0.00022272,3]
[388983796,1759554644909,-1364.87,0.00022272,3]
[388983797,1759554644919,-500.0,0.00022272,3]
[388983798,1759554644929,-500.0,0.00022272,3]
[388983799,1759554644941,-1465.71,0.00022272,3]
[388983800,1759554644951,-500.0,0.00022272,3]
[388983801,1759554644963,-1629.9,0.00022272,3]
[388983802,1759554644973,-500.0,0.00022272,3]
[388983803,1759554644983,-500.0,0.00022272,2]
[388983804,1759554644992,-500.0,0.00022272,3]
[388983805,1759554645002,-500.0,0.00022272,3]
[388983806,1759554645013,-500.0,0.00022272,3]
[388983807,1759554645023,-8918.32,0.00022272,3]
[388983808,1759554645033,-500.0,0.00022272,3]
[388983809,1759554645042,-500.0,0.00022272,3]
[388983810,1759554645052,-500.0,0.00022272,3]
[388983811,1759554645063,-500.0,0.00022272,3]
[388983812,1759554645072,-1057.7,0.00022272,3]
[388983813,1759554645082,-1288.23,0.00022272,3]
[388983814,1759554645091,-4987.75,0.00022272,3]
[388983815,1759554645101,-500.0,0.00022272,3]